[Event "Titled Tuesday Blitz June 27 Early 2023"]
[White "Herman, Daniel"]
[Black "Spata, German"]
[WhiteFideId "30935008"]
[BlackFideId "113026"]
[WhiteElo "2434"]
[BlackElo "2603"]
[Result "0-1"]
[Round "3"]
[TimeControl "180+2"]
[Date "2023.06.27"]
[WhiteClock "0:00:03"]
[BlackClock "0:00:20"]
[Board "137"]

1. d4 {[%clk 0:03:00]}  e6 {[%clk 0:02:49]} 2. Bf4 {[%clk 0:03:00]}  c5 {[%clk 0:02:44]} 3. c3 {[%clk 0:02:55]}  Nf6 {[%clk 0:02:44]} 4. e3 {[%clk 0:02:54]}  cxd4 {[%clk 0:02:44]} 5. cxd4 {[%clk 0:02:50]}  d6 {[%clk 0:02:41]} 6. Nc3 {[%clk 0:02:49]}  Be7 {[%clk 0:02:41]} 7. Nf3 {[%clk 0:02:48]}  O-O {[%clk 0:02:40]} 8. Bd3 {[%clk 0:02:48]}  b6 {[%clk 0:02:39]} 9. O-O {[%clk 0:02:45]}  Bb7 {[%clk 0:02:39]} 10. h3 {[%clk 0:02:44]}  a6 {[%clk 0:02:40]} 11. Rc1 {[%clk 0:02:42]}  b5 {[%clk 0:02:39]} 12. a3 {[%clk 0:02:36]}  Nbd7 {[%clk 0:02:39]} 13. e4 {[%clk 0:02:34]}  Nb6 {[%clk 0:02:35]} 14. Qe2 {[%clk 0:02:16]}  Rc8 {[%clk 0:02:31]} 15. Bh2 {[%clk 0:02:07]}  Qd7 {[%clk 0:02:18]} 16. Rfd1 {[%clk 0:01:59]}  Rc7 {[%clk 0:02:07]} 17. e5 {[%clk 0:01:59]}  Nfd5 {[%clk 0:02:03]} 18. Ne4 {[%clk 0:01:54]}  Rxc1 {[%clk 0:01:51]} 19. Rxc1 {[%clk 0:01:53]}  dxe5 {[%clk 0:01:50]} 20. Nxe5 {[%clk 0:01:49]}  Qd8 {[%clk 0:01:47]} 21. Nc5 {[%clk 0:01:47]}  Qa8 {[%clk 0:01:31]} 22. Qh5 {[%clk 0:01:07]}  Nf6 {[%clk 0:01:24]} 23. Qg5 {[%clk 0:00:57]}  h6 {[%clk 0:01:19]} 24. Qg3 {[%clk 0:00:49]}  Rd8 {[%clk 0:01:09]} 25. Nxb7 {[%clk 0:00:44]}  Qxb7 {[%clk 0:01:09]} 26. Qf4 {[%clk 0:00:41]}  Bd6 {[%clk 0:01:00]} 27. Be2 {[%clk 0:00:35]}  Nbd5 {[%clk 0:00:49]} 28. Qh4 {[%clk 0:00:33]}  Rc8 {[%clk 0:00:45]} 29. Rxc8+ {[%clk 0:00:31]}  Qxc8 {[%clk 0:00:46]} 30. Bg3 {[%clk 0:00:20]}  Qc1+ {[%clk 0:00:44]} 31. Kh2 {[%clk 0:00:20]}  Qxb2 {[%clk 0:00:43]} 32. Bf3 {[%clk 0:00:20]}  Qxa3 {[%clk 0:00:43]} 33. Bh5 {[%clk 0:00:10]}  Nxh5 {[%clk 0:00:36]} 34. Qxh5 {[%clk 0:00:10]}  Bxe5 {[%clk 0:00:35]} 35. Bxe5 {[%clk 0:00:10]}  Qe7 {[%clk 0:00:31]} 36. Qg4 {[%clk 0:00:10]}  f6 {[%clk 0:00:31]} 37. Bf4 {[%clk 0:00:10]}  Kh7 {[%clk 0:00:30]} 38. Bc1 {[%clk 0:00:10]}  b4 {[%clk 0:00:29]} 39. Qe4+ {[%clk 0:00:10]}  f5 {[%clk 0:00:27]} 40. Qe5 {[%clk 0:00:10]}  a5 {[%clk 0:00:22]} 41. g3 {[%clk 0:00:09]}  a4 {[%clk 0:00:22]} 42. Qe2 {[%clk 0:00:10]}  a3 {[%clk 0:00:20]} 43. Qc4 {[%clk 0:00:03]}  Qc7 {[%clk 0:00:20]} 0-1


[Site "https://www.chess.com"]

[Event "Titled Tuesday Blitz June 27 Early 2023"]
[White "Piesik, Piotr"]
[Black "Rom, Jasper"]
[WhiteFideId "1136194"]
[BlackFideId "2023733"]
[WhiteElo "2602"]
[BlackElo "2434"]
[Result "1-0"]
[Round "3"]
[TimeControl "180+2"]
[Date "2023.06.27"]
[WhiteClock "0:01:16"]
[BlackClock "0:00:00"]
[Board "138"]

1. Nf3 {[%clk 0:02:59]}  d5 {[%clk 0:02:59]} 2. g3 {[%clk 0:03:00]}  e6 {[%clk 0:02:59]} 3. Bg2 {[%clk 0:03:00]}  Nf6 {[%clk 0:02:59]} 4. O-O {[%clk 0:03:01]}  Be7 {[%clk 0:02:57]} 5. d3 {[%clk 0:03:02]}  Nc6 {[%clk 0:02:55]} 6. Nbd2 {[%clk 0:03:03]}  O-O {[%clk 0:02:54]} 7. e4 {[%clk 0:03:03]}  dxe4 {[%clk 0:02:54]} 8. dxe4 {[%clk 0:03:04]}  e5 {[%clk 0:02:54]} 9. c3 {[%clk 0:03:04]}  a5 {[%clk 0:02:51]} 10. Qc2 {[%clk 0:03:03]}  Bc5 {[%clk 0:02:51]} 11. Nb3 {[%clk 0:03:01]}  Bb6 {[%clk 0:02:46]} 12. a4 {[%clk 0:03:01]}  Qe7 {[%clk 0:02:42]} 13. Bg5 {[%clk 0:02:39]}  h6 {[%clk 0:02:41]} 14. Bxf6 {[%clk 0:02:39]}  Qxf6 {[%clk 0:02:41]} 15. Nfd2 {[%clk 0:02:39]}  Be6 {[%clk 0:02:39]} 16. Kh1 {[%clk 0:02:34]}  Rad8 {[%clk 0:02:36]} 17. f4 {[%clk 0:02:34]}  exf4 {[%clk 0:02:30]} 18. gxf4 {[%clk 0:02:33]}  Qh4 {[%clk 0:02:28]} 19. f5 {[%clk 0:02:18]}  Bxb3 {[%clk 0:02:19]} 20. Nxb3 {[%clk 0:02:16]}  Ne5 {[%clk 0:02:19]} 21. Bf3 {[%clk 0:02:07]}  Be3 {[%clk 0:01:59]} 22. Qg2 {[%clk 0:02:04]}  Nd3 {[%clk 0:01:07]} 23. Qg3 {[%clk 0:01:55]}  Qxg3 {[%clk 0:01:00]} 24. hxg3 {[%clk 0:01:56]}  b6 {[%clk 0:01:01]} 25. Rab1 {[%clk 0:01:53]}  c5 {[%clk 0:00:50]} 26. Kg2 {[%clk 0:01:49]}  c4 {[%clk 0:00:43]} 27. Na1 {[%clk 0:01:48]}  Nc5 {[%clk 0:00:43]} 28. Rfe1 {[%clk 0:01:38]}  Rd2+ {[%clk 0:00:41]} 29. Re2 {[%clk 0:01:38]}  Rfd8 {[%clk 0:00:41]} 30. Nc2 {[%clk 0:01:28]}  Bg5 {[%clk 0:00:28]} 31. Nd4 {[%clk 0:01:27]}  Rxe2+ {[%clk 0:00:24]} 32. Bxe2 {[%clk 0:01:28]}  Nxa4 {[%clk 0:00:22]} 33. Bxc4 {[%clk 0:01:26]}  Bf6 {[%clk 0:00:23]} 34. Nf3 {[%clk 0:01:21]}  Re8 {[%clk 0:00:17]} 35. e5 {[%clk 0:01:16]}  Bg5 {[%clk 0:00:00]} 36. Bb5 {[%clk 0:01:16]} 1-0


[Site "https://www.chess.com"]

[Event "Titled Tuesday Blitz June 27 Early 2023"]
[White "Poormosavi, Seyed Kian"]
[Black "Lacasa Diaz, Jose Antonio"]
[WhiteFideId "12585807"]
[BlackFideId "2203375"]
[WhiteElo "2601"]
[BlackElo "2430"]
[Result "0-1"]
[Round "3"]
[TimeControl "180+2"]
[Date "2023.06.27"]
[WhiteClock "0:01:12"]
[BlackClock "0:00:34"]
[Board "139"]

1. Nf3 {[%clk 0:03:00]}  d5 {[%clk 0:02:59]} 2. g3 {[%clk 0:03:00]}  c5 {[%clk 0:02:59]} 3. Bg2 {[%clk 0:03:01]}  Nc6 {[%clk 0:03:00]} 4. d4 {[%clk 0:03:01]}  e6 {[%clk 0:03:00]} 5. O-O {[%clk 0:02:58]}  Nf6 {[%clk 0:03:00]} 6. c4 {[%clk 0:02:55]}  cxd4 {[%clk 0:03:00]} 7. Nxd4 {[%clk 0:02:55]}  Bc5 {[%clk 0:03:00]} 8. Nxc6 {[%clk 0:02:54]}  bxc6 {[%clk 0:03:01]} 9. cxd5 {[%clk 0:02:55]}  cxd5 {[%clk 0:03:01]} 10. Nc3 {[%clk 0:02:55]}  O-O {[%clk 0:03:00]} 11. e4 {[%clk 0:02:56]}  Ba6 {[%clk 0:02:44]} 12. Re1 {[%clk 0:02:46]}  Qb6 {[%clk 0:02:37]} 13. Qc2 {[%clk 0:02:32]}  Ng4 {[%clk 0:02:18]} 14. Nd1 {[%clk 0:02:28]}  Rac8 {[%clk 0:02:13]} 15. b3 {[%clk 0:02:16]}  Bxf2+ {[%clk 0:02:06]} 16. Qxf2 {[%clk 0:02:16]}  Nxf2 {[%clk 0:02:06]} 17. Nxf2 {[%clk 0:02:17]}  Rc2 {[%clk 0:01:53]} 18. Be3 {[%clk 0:02:17]}  d4 {[%clk 0:01:54]} 19. Bf4 {[%clk 0:02:17]}  Rfc8 {[%clk 0:01:22]} 20. e5 {[%clk 0:02:08]}  h6 {[%clk 0:01:21]} 21. Be4 {[%clk 0:02:03]}  g5 {[%clk 0:01:06]} 22. Bxc2 {[%clk 0:01:31]}  Rxc2 {[%clk 0:01:07]} 23. Bc1 {[%clk 0:01:32]}  Bb7 {[%clk 0:00:43]} 24. Ba3 {[%clk 0:01:28]}  d3 {[%clk 0:00:35]} 25. Rf1 {[%clk 0:01:12]}  Qc6 {[%clk 0:00:34]} 0-1


[Site "https://www.chess.com"]

[Event "Titled Tuesday Blitz June 27 Early 2023"]
[White "Petrova, Irina"]
[Black "De La Villa Garcia, Jesus Maria"]
[WhiteFideId "14124122"]
[BlackFideId "2200040"]
[WhiteElo "2404"]
[BlackElo "2599"]
[Result "1/2-1/2"]
[Round "3"]
[TimeControl "180+2"]
[Date "2023.06.27"]
[WhiteClock "0:00:11"]
[BlackClock "0:00:22"]
[Board "144"]

1. e4 {[%clk 0:02:55]}  c6 {[%clk 0:02:59]} 2. d4 {[%clk 0:02:54]}  d5 {[%clk 0:03:00]} 3. Nc3 {[%clk 0:02:55]}  dxe4 {[%clk 0:03:01]} 4. Nxe4 {[%clk 0:02:56]}  Nf6 {[%clk 0:03:01]} 5. Nxf6+ {[%clk 0:02:56]}  exf6 {[%clk 0:03:02]} 6. Be3 {[%clk 0:02:56]}  Bd6 {[%clk 0:03:02]} 7. Bd3 {[%clk 0:02:56]}  O-O {[%clk 0:03:02]} 8. Ne2 {[%clk 0:02:55]}  Re8 {[%clk 0:03:01]} 9. Qd2 {[%clk 0:02:54]}  Nd7 {[%clk 0:03:01]} 10. O-O {[%clk 0:02:54]}  Nf8 {[%clk 0:03:01]} 11. Bf4 {[%clk 0:02:53]}  Ng6 {[%clk 0:02:57]} 12. Bxd6 {[%clk 0:02:52]}  Qxd6 {[%clk 0:02:58]} 13. Rfe1 {[%clk 0:02:52]}  Be6 {[%clk 0:02:55]} 14. c3 {[%clk 0:02:47]}  Rad8 {[%clk 0:02:55]} 15. Ng3 {[%clk 0:02:47]}  Bc8 {[%clk 0:02:43]} 16. Rxe8+ {[%clk 0:02:41]}  Rxe8 {[%clk 0:02:44]} 17. Re1 {[%clk 0:02:41]}  Rd8 {[%clk 0:02:42]} 18. Ne4 {[%clk 0:02:39]}  Qc7 {[%clk 0:02:40]} 19. Qe3 {[%clk 0:02:24]}  Nf4 {[%clk 0:02:33]} 20. Bc2 {[%clk 0:02:15]}  b6 {[%clk 0:02:22]} 21. Ng3 {[%clk 0:01:51]}  Be6 {[%clk 0:02:18]} 22. b3 {[%clk 0:01:42]}  g6 {[%clk 0:02:12]} 23. c4 {[%clk 0:01:36]}  Kg7 {[%clk 0:02:05]} 24. h4 {[%clk 0:01:18]}  h5 {[%clk 0:02:03]} 25. Ne2 {[%clk 0:01:02]}  Nxe2+ {[%clk 0:02:00]} 26. Rxe2 {[%clk 0:01:03]}  Qd6 {[%clk 0:02:00]} 27. Rd2 {[%clk 0:01:02]}  Qa3 {[%clk 0:02:00]} 28. Be4 {[%clk 0:00:52]}  Qd6 {[%clk 0:01:53]} 29. Bf3 {[%clk 0:00:50]}  Bf5 {[%clk 0:01:51]} 30. g3 {[%clk 0:00:45]}  Rd7 {[%clk 0:01:50]} 31. d5 {[%clk 0:00:38]}  c5 {[%clk 0:01:48]} 32. Re2 {[%clk 0:00:35]}  Kf8 {[%clk 0:01:41]} 33. Kg2 {[%clk 0:00:33]}  Rd8 {[%clk 0:01:37]} 34. Be4 {[%clk 0:00:26]}  Bg4 {[%clk 0:01:36]} 35. Bf3 {[%clk 0:00:26]}  Bd7 {[%clk 0:01:36]} 36. Qh6+ {[%clk 0:00:25]}  Kg8 {[%clk 0:01:37]} 37. Re3 {[%clk 0:00:22]}  Bf5 {[%clk 0:01:30]} 38. Be4 {[%clk 0:00:16]}  Qd7 {[%clk 0:01:23]} 39. Bxf5 {[%clk 0:00:15]}  Qxf5 {[%clk 0:01:24]} 40. Re7 {[%clk 0:00:14]}  a6 {[%clk 0:01:15]} 41. Qe3 {[%clk 0:00:13]}  Kg7 {[%clk 0:01:11]} 42. Re8 {[%clk 0:00:13]}  Rd7 {[%clk 0:00:53]} 43. Re7 {[%clk 0:00:13]}  Rd8 {[%clk 0:00:51]} 44. Qe6 {[%clk 0:00:10]}  Qxe6 {[%clk 0:00:26]} 45. dxe6 {[%clk 0:00:11]}  Rf8 {[%clk 0:00:27]} 46. exf7 {[%clk 0:00:11]}  Rxf7 {[%clk 0:00:28]} 47. Re6 {[%clk 0:00:11]}  Rb7 {[%clk 0:00:27]} 48. Kf3 {[%clk 0:00:10]}  Kf7 {[%clk 0:00:27]} 49. Rd6 {[%clk 0:00:10]}  Rb8 {[%clk 0:00:26]} 50. Ke3 {[%clk 0:00:09]}  Re8+ {[%clk 0:00:23]} 51. Kf3 {[%clk 0:00:10]}  Re6 {[%clk 0:00:23]} 52. Rd7+ {[%clk 0:00:10]}  Re7 {[%clk 0:00:24]} 53. Rd6 {[%clk 0:00:10]}  Re6 {[%clk 0:00:24]} 54. Rd7+ {[%clk 0:00:10]}  Re7 {[%clk 0:00:24]} 55. Rd6 {[%clk 0:00:11]}  Re6 {[%clk 0:00:22]} 1/2-1/2


[Site "https://www.chess.com"]

[Event "Titled Tuesday Blitz June 27 Early 2023"]
[White "Niekras, Dawid"]
[Black "Dixit, Arun"]
[WhiteFideId "1160451"]
[BlackFideId "30937671"]
[WhiteElo "2596"]
[BlackElo "2402"]
[Result "1-0"]
[Round "3"]
[TimeControl "180+2"]
[Date "2023.06.27"]
[WhiteClock "0:00:42"]
[BlackClock "0:00:17"]
[Board "145"]

1. e4 {[%clk 0:03:00]}  c5 {[%clk 0:02:56]} 2. Nf3 {[%clk 0:03:01]}  g6 {[%clk 0:02:55]} 3. d4 {[%clk 0:03:00]}  cxd4 {[%clk 0:02:53]} 4. Nxd4 {[%clk 0:03:01]}  Nc6 {[%clk 0:02:53]} 5. Be2 {[%clk 0:03:01]}  Bg7 {[%clk 0:02:52]} 6. Nb3 {[%clk 0:03:01]}  Nf6 {[%clk 0:02:52]} 7. Nc3 {[%clk 0:03:02]}  d6 {[%clk 0:02:52]} 8. O-O {[%clk 0:03:02]}  O-O {[%clk 0:02:53]} 9. Re1 {[%clk 0:03:03]}  Bd7 {[%clk 0:02:54]} 10. Bf1 {[%clk 0:03:04]}  Rc8 {[%clk 0:02:53]} 11. Nd5 {[%clk 0:03:03]}  Ne5 {[%clk 0:02:30]} 12. c3 {[%clk 0:03:03]}  a5 {[%clk 0:02:27]} 13. a4 {[%clk 0:02:37]}  Nxd5 {[%clk 0:01:57]} 14. exd5 {[%clk 0:02:38]}  Nc4 {[%clk 0:01:58]} 15. Nd4 {[%clk 0:02:24]}  Re8 {[%clk 0:01:46]} 16. Qb3 {[%clk 0:02:02]}  Bxd4 {[%clk 0:01:11]} 17. cxd4 {[%clk 0:01:55]}  Nb6 {[%clk 0:01:07]} 18. Bd2 {[%clk 0:01:41]}  Ra8 {[%clk 0:00:54]} 19. h4 {[%clk 0:01:32]}  e6 {[%clk 0:00:52]} 20. dxe6 {[%clk 0:01:26]}  Bxe6 {[%clk 0:00:51]} 21. Qg3 {[%clk 0:01:25]}  h5 {[%clk 0:00:43]} 22. Bg5 {[%clk 0:01:15]}  Qd7 {[%clk 0:00:41]} 23. Bb5 {[%clk 0:01:14]}  Qc7 {[%clk 0:00:41]} 24. Rac1 {[%clk 0:01:09]}  Qb8 {[%clk 0:00:40]} 25. Bxe8 {[%clk 0:01:09]}  Qxe8 {[%clk 0:00:41]} 26. Qxd6 {[%clk 0:01:03]}  Nd5 {[%clk 0:00:35]} 27. Rc5 {[%clk 0:00:51]}  Ra6 {[%clk 0:00:24]} 28. Qe5 {[%clk 0:00:43]}  Rc6 {[%clk 0:00:17]} 29. Rxd5 {[%clk 0:00:42]}  Bd7 {[%clk 0:00:16]} 30. Qxe8+ {[%clk 0:00:43]}  Bxe8 {[%clk 0:00:17]} 31. Rxe8+ {[%clk 0:00:43]}  Kg7 {[%clk 0:00:18]} 32. Rdd8 {[%clk 0:00:42]}  f6 {[%clk 0:00:17]} 33. Re7# {[%clk 0:00:42]} 1-0


[Site "https://www.chess.com"]

[Event "Titled Tuesday Blitz June 27 Early 2023"]
[White "Kuznetsov, Mikhail"]
[Black "Skliarov, Viktor"]
[WhiteFideId "4117190"]
[BlackFideId "14106736"]
[WhiteElo "2385"]
[BlackElo "2584"]
[Result "1-0"]
[Round "3"]
[TimeControl "180+2"]
[Date "2023.06.27"]
[WhiteClock "0:00:27"]
[BlackClock "0:00:19"]
[Board "150"]

1. Nf3 {[%clk 0:02:47]}  g6 {[%clk 0:02:59]} 2. d4 {[%clk 0:02:44]}  Bg7 {[%clk 0:02:59]} 3. g3 {[%clk 0:02:44]}  Nf6 {[%clk 0:02:59]} 4. Bg2 {[%clk 0:02:43]}  O-O {[%clk 0:02:59]} 5. b3 {[%clk 0:02:43]}  c5 {[%clk 0:02:56]} 6. Bb2 {[%clk 0:02:43]}  cxd4 {[%clk 0:02:56]} 7. Nxd4 {[%clk 0:02:42]}  Nc6 {[%clk 0:02:57]} 8. O-O {[%clk 0:02:41]}  d5 {[%clk 0:02:57]} 9. c4 {[%clk 0:02:34]}  Nxd4 {[%clk 0:02:34]} 10. Bxd4 {[%clk 0:02:26]}  dxc4 {[%clk 0:02:33]} 11. bxc4 {[%clk 0:02:27]}  Ng4 {[%clk 0:02:20]} 12. Bxg7 {[%clk 0:02:13]}  Kxg7 {[%clk 0:02:20]} 13. Qb3 {[%clk 0:02:06]}  Qc7 {[%clk 0:02:17]} 14. Nc3 {[%clk 0:02:02]}  Be6 {[%clk 0:02:15]} 15. Nd5 {[%clk 0:01:57]}  Bxd5 {[%clk 0:02:09]} 16. cxd5 {[%clk 0:01:56]}  Rac8 {[%clk 0:02:03]} 17. Qa4 {[%clk 0:01:40]}  h5 {[%clk 0:01:46]} 18. Qxa7 {[%clk 0:01:40]}  Qe5 {[%clk 0:01:20]} 19. Qxb7 {[%clk 0:01:18]}  Qxe2 {[%clk 0:01:19]} 20. Rae1 {[%clk 0:01:15]}  Qxa2 {[%clk 0:01:18]} 21. Qxe7 {[%clk 0:01:14]}  Rc2 {[%clk 0:01:17]} 22. Qe4 {[%clk 0:00:57]}  Rd8 {[%clk 0:00:52]} 23. h3 {[%clk 0:00:54]}  Nh6 {[%clk 0:00:51]} 24. Qe5+ {[%clk 0:00:32]}  Kg8 {[%clk 0:00:51]} 25. Ra1 {[%clk 0:00:31]}  Qb2 {[%clk 0:00:19]} 26. Qg5 {[%clk 0:00:27]} 1-0


[Site "https://www.chess.com"]

[Event "Titled Tuesday Blitz June 27 Early 2023"]
[White "Mickiewicz, Piotr"]
[Black "Nozdrachev, Leonid"]
[WhiteFideId "1114891"]
[BlackFideId "24113433"]
[WhiteElo "2373"]
[BlackElo "2582"]
[Result "1-0"]
[Round "3"]
[TimeControl "180+2"]
[Date "2023.06.27"]
[WhiteClock "0:01:24"]
[BlackClock "0:00:00"]
[Board "151"]

1. e4 {[%clk 0:02:52]}  c5 {[%clk 0:02:53]} 2. Nf3 {[%clk 0:02:52]}  Nc6 {[%clk 0:02:52]} 3. c3 {[%clk 0:02:51]}  e6 {[%clk 0:02:46]} 4. d4 {[%clk 0:02:50]}  d5 {[%clk 0:02:46]} 5. e5 {[%clk 0:02:49]}  Bd7 {[%clk 0:02:44]} 6. Be2 {[%clk 0:02:47]}  f6 {[%clk 0:02:43]} 7. Bf4 {[%clk 0:02:43]}  Qb6 {[%clk 0:02:40]} 8. b3 {[%clk 0:02:32]}  cxd4 {[%clk 0:02:36]} 9. cxd4 {[%clk 0:02:32]}  Bb4+ {[%clk 0:02:35]} 10. Kf1 {[%clk 0:02:31]}  Nge7 {[%clk 0:02:28]} 11. exf6 {[%clk 0:02:23]}  gxf6 {[%clk 0:02:26]} 12. a3 {[%clk 0:02:15]}  Ng6 {[%clk 0:02:23]} 13. Bg3 {[%clk 0:02:10]}  Be7 {[%clk 0:02:22]} 14. h4 {[%clk 0:02:08]}  Rg8 {[%clk 0:02:13]} 15. h5 {[%clk 0:02:07]}  Nh8 {[%clk 0:02:13]} 16. Nc3 {[%clk 0:02:07]}  Nf7 {[%clk 0:02:10]} 17. b4 {[%clk 0:02:02]}  Bd6 {[%clk 0:02:02]} 18. Bxd6 {[%clk 0:01:55]}  Nxd6 {[%clk 0:02:03]} 19. Na4 {[%clk 0:01:53]}  Qd8 {[%clk 0:01:55]} 20. Nc5 {[%clk 0:01:54]}  b6 {[%clk 0:01:52]} 21. Nxd7 {[%clk 0:01:50]}  Qxd7 {[%clk 0:01:53]} 22. Rc1 {[%clk 0:01:50]}  a6 {[%clk 0:01:42]} 23. Bd3 {[%clk 0:01:50]}  b5 {[%clk 0:01:28]} 24. Qc2 {[%clk 0:01:48]}  Nc4 {[%clk 0:01:17]} 25. Bxh7 {[%clk 0:01:44]}  Rg4 {[%clk 0:01:10]} 26. Bg6+ {[%clk 0:01:41]}  Ke7 {[%clk 0:01:07]} 27. Qd3 {[%clk 0:01:40]}  Rh8 {[%clk 0:01:00]} 28. Re1 {[%clk 0:01:38]}  Qd6 {[%clk 0:00:50]} 29. Bf5 {[%clk 0:01:37]}  Re4 {[%clk 0:00:38]} 30. Bxe4 {[%clk 0:01:36]}  dxe4 {[%clk 0:00:37]} 31. Qxe4 {[%clk 0:01:37]}  Kd7 {[%clk 0:00:25]} 32. h6 {[%clk 0:01:35]}  Ne7 {[%clk 0:00:25]} 33. Qb7+ {[%clk 0:01:33]}  Kd8 {[%clk 0:00:15]} 34. Rh5 {[%clk 0:01:33]}  Qc6 {[%clk 0:00:02]} 35. Qb8+ {[%clk 0:01:24]}  Nc8 {[%clk 0:00:02]} 36. d5 {[%clk 0:01:24]}  exd5 {[%clk 0:00:00]} 37. Nd4 {[%clk 0:01:24]} 1-0


[Site "https://www.chess.com"]

[Event "Titled Tuesday Blitz June 27 Early 2023"]
[White "Mendez Fortes, Eduardo Jesus"]
[Black "Llanos, Guillermo"]
[WhiteFideId "3502376"]
[BlackFideId "100358"]
[WhiteElo "2578"]
[BlackElo "2370"]
[Result "0-1"]
[Round "3"]
[TimeControl "180+2"]
[Date "2023.06.27"]
[WhiteClock "0:00:07"]
[BlackClock "0:00:16"]
[Board "152"]

1. e4 {[%clk 0:03:00]}  Nf6 {[%clk 0:02:57]} 2. e5 {[%clk 0:03:00]}  Nd5 {[%clk 0:02:57]} 3. d4 {[%clk 0:03:01]}  d6 {[%clk 0:02:56]} 4. Nf3 {[%clk 0:03:02]}  Bg4 {[%clk 0:02:54]} 5. Be2 {[%clk 0:03:02]}  e6 {[%clk 0:02:54]} 6. c4 {[%clk 0:03:01]}  Nb6 {[%clk 0:02:53]} 7. exd6 {[%clk 0:03:01]}  cxd6 {[%clk 0:02:53]} 8. h3 {[%clk 0:03:02]}  Bh5 {[%clk 0:02:53]} 9. Nc3 {[%clk 0:03:02]}  Be7 {[%clk 0:02:53]} 10. g4 {[%clk 0:03:02]}  Bg6 {[%clk 0:02:53]} 11. h4 {[%clk 0:03:02]}  h6 {[%clk 0:02:46]} 12. Bf4 {[%clk 0:02:56]}  Nc6 {[%clk 0:02:39]} 13. a4 {[%clk 0:02:49]}  Nb4 {[%clk 0:02:34]} 14. Rc1 {[%clk 0:02:48]}  d5 {[%clk 0:02:30]} 15. c5 {[%clk 0:02:44]}  Nc4 {[%clk 0:02:30]} 16. Nb5 {[%clk 0:02:40]}  O-O {[%clk 0:02:15]} 17. b3 {[%clk 0:02:35]}  Nb2 {[%clk 0:02:11]} 18. Qd2 {[%clk 0:02:32]}  N2d3+ {[%clk 0:02:11]} 19. Kf1 {[%clk 0:02:23]}  Nxc1 {[%clk 0:02:10]} 20. Qxc1 {[%clk 0:02:23]}  a6 {[%clk 0:02:07]} 21. Nc3 {[%clk 0:02:10]}  Nd3 {[%clk 0:02:07]} 22. Qd2 {[%clk 0:02:10]}  Nxf4 {[%clk 0:02:06]} 23. Qxf4 {[%clk 0:02:11]}  b6 {[%clk 0:01:55]} 24. b4 {[%clk 0:02:10]}  a5 {[%clk 0:01:53]} 25. bxa5 {[%clk 0:01:46]}  Rxa5 {[%clk 0:01:52]} 26. c6 {[%clk 0:01:40]}  Bd6 {[%clk 0:01:48]} 27. Qe3 {[%clk 0:01:38]}  Qc7 {[%clk 0:01:42]} 28. Bb5 {[%clk 0:01:32]}  Bf4 {[%clk 0:01:31]} 29. Qe2 {[%clk 0:01:29]}  Qd6 {[%clk 0:01:29]} 30. Kg2 {[%clk 0:01:17]}  Rc8 {[%clk 0:01:28]} 31. h5 {[%clk 0:00:59]}  Bh7 {[%clk 0:01:25]} 32. Rh3 {[%clk 0:00:54]}  Rxc6 {[%clk 0:01:23]} 33. Bxc6 {[%clk 0:00:54]}  Qxc6 {[%clk 0:01:24]} 34. Ne5 {[%clk 0:00:48]}  Qc7 {[%clk 0:01:23]} 35. Nb5 {[%clk 0:00:46]}  Qd8 {[%clk 0:01:11]} 36. Rc3 {[%clk 0:00:38]}  Ra8 {[%clk 0:01:10]} 37. Qd1 {[%clk 0:00:16]}  Be4+ {[%clk 0:01:04]} 38. f3 {[%clk 0:00:16]}  Qh4 {[%clk 0:01:00]} 39. fxe4 {[%clk 0:00:14]}  Qh2+ {[%clk 0:01:00]} 40. Kf1 {[%clk 0:00:14]}  Qh1+ {[%clk 0:00:48]} 41. Ke2 {[%clk 0:00:14]}  Qxe4+ {[%clk 0:00:47]} 42. Kf2 {[%clk 0:00:15]}  Bg5 {[%clk 0:00:40]} 43. Nf3 {[%clk 0:00:13]}  Qxg4 {[%clk 0:00:35]} 44. Qc2 {[%clk 0:00:10]}  Bh4+ {[%clk 0:00:33]} 45. Nxh4 {[%clk 0:00:10]}  Qxh4+ {[%clk 0:00:33]} 46. Ke2 {[%clk 0:00:10]}  Qxh5+ {[%clk 0:00:33]} 47. Kd2 {[%clk 0:00:11]}  Qh2+ {[%clk 0:00:33]} 48. Kc1 {[%clk 0:00:11]}  Qxc2+ {[%clk 0:00:32]} 49. Rxc2 {[%clk 0:00:11]}  Rxa4 {[%clk 0:00:32]} 50. Rc8+ {[%clk 0:00:11]}  Kh7 {[%clk 0:00:32]} 51. Rb8 {[%clk 0:00:11]}  g5 {[%clk 0:00:28]} 52. Rxb6 {[%clk 0:00:11]}  Kg6 {[%clk 0:00:29]} 53. Kd2 {[%clk 0:00:11]}  h5 {[%clk 0:00:28]} 54. Ke3 {[%clk 0:00:12]}  Rb4 {[%clk 0:00:25]} 55. Kd3 {[%clk 0:00:10]}  h4 {[%clk 0:00:24]} 56. Kc3 {[%clk 0:00:11]}  Rc4+ {[%clk 0:00:23]} 57. Kd3 {[%clk 0:00:12]}  h3 {[%clk 0:00:22]} 58. Nd6 {[%clk 0:00:12]}  Rc1 {[%clk 0:00:21]} 59. Rb2 {[%clk 0:00:12]}  g4 {[%clk 0:00:20]} 60. Rh2 {[%clk 0:00:10]}  f5 {[%clk 0:00:18]} 61. Ke3 {[%clk 0:00:10]}  Rf1 {[%clk 0:00:18]} 62. Nb5 {[%clk 0:00:08]}  Rf3+ {[%clk 0:00:18]} 63. Ke2 {[%clk 0:00:08]}  Rf4 {[%clk 0:00:17]} 64. Nc7 {[%clk 0:00:09]}  Rxd4 {[%clk 0:00:16]} 65. Kf2 {[%clk 0:00:09]}  Re4 {[%clk 0:00:16]} 66. Kg3 {[%clk 0:00:09]}  Kg5 {[%clk 0:00:16]} 67. Ra2 {[%clk 0:00:09]}  f4+ {[%clk 0:00:16]} 68. Kh2 {[%clk 0:00:10]}  Kh4 {[%clk 0:00:16]} 69. Ne8 {[%clk 0:00:07]}  g3+ {[%clk 0:00:16]} 0-1


[Site "https://www.chess.com"]